fUSD/lending_fUSD_20250507
["ID","MTS","AMOUNT","RATE_DAILY","PERIOD"]
[360209739,1746625853910,-450.0,0.00019981,2]
[360209740,1746625853925,-450.0,0.00019981,2]
[360209741,1746625853935,-261.63,0.00019981,2]
[360209742,1746625853944,-450.0,0.00019981,2]
[360209743,1746625853954,-450.0,0.00019981,2]
[360209744,1746625853965,-173.411888,0.00019981,2]
[360209745,1746625853974,-450.0,0.00019981,2]
[360209746,1746625853983,-450.0,0.00019981,2]
[360209747,1746625853993,-450.0,0.00019981,2]
[360209748,1746625854003,-450.0,0.00019981,2]
[360209749,1746625854013,-450.0,0.00019981,2]
[360209750,1746625854023,-450.0,0.00019981,2]
[360209751,1746625854032,-151.0,0.00019981,2]
[360209752,1746625854041,-450.0,0.00019981,2]
[360209753,1746625854051,-981.904133,0.00019981,2]
[360209754,1746625854061,-450.0,0.00019981,2]
[360209755,1746625854071,-981.904133,0.00019981,2]
[360209756,1746625854081,-151.0,0.00019981,2]
[360209757,1746625854090,-450.0,0.00019981,2]
[360209758,1746625854100,-151.0,0.00019981,2]
[360209759,1746625854111,-450.0,0.00019981,2]
[360209760,1746625854121,-557.5441332,0.00019981,2]
[360209761,1746625854132,-450.0,0.00019981,2]
[360209762,1746625854142,-450.0,0.00019981,2]
[360209763,1746625854151,-450.0,0.00019981,2]
[360209764,1746625854160,-450.0,0.00019981,2]
[360209765,1746625854174,-450.0,0.00019981,2]
[360209766,1746625854183,-450.0,0.00019981,2]
[360209767,1746625854192,-34179.84,0.00019981,2]
[360209768,1746625854201,-450.0,0.00019981,2]
[360209769,1746625854211,-450.0,0.00019981,2]
[360209770,1746625854220,-450.0,0.00019981,2]
[360209771,1746625854230,-450.0,0.00019981,2]
[360209772,1746625854240,-450.0,0.00019981,2]
[360209773,1746625854249,-450.0,0.00019981,2]
[360209774,1746625854258,-450.0,0.00019981,2]
[360209775,1746625854268,-450.0,0.00019981,2]
[360209776,1746625854277,-450.0,0.00019981,2]
[360209777,1746625854286,-450.0,0.00019981,2]
[360209778,1746625854296,-151.0,0.00019981,2]
[360209779,1746625854308,-450.0,0.00019981,2]
[360209780,1746625854317,-450.0,0.00019981,2]
[360209781,1746625854329,-151.0,0.00019981,2]
[360209782,1746625854341,-450.0,0.00019981,2]
[360209783,1746625854353,-192.789661,0.00019981,2]
[360209784,1746625854363,-450.0,0.00019981,2]
[360209785,1746625854372,-512.50921445,0.00019981,2]
[360209786,1746625854381,-700.52,0.00019981,2]
[360209787,1746625854392,-450.0,0.00019981,2]
[360209788,1746625854401,-450.0,0.00019981,2]
[360209789,1746625854410,-450.0,0.00019981,2]
[360209790,1746625854421,-450.0,0.00019981,2]
[360209791,1746625854431,-450.0,0.00019981,2]
[360209792,1746625854440,-450.0,0.00019981,2]
[360209793,1746625854449,-450.0,0.00019981,2]
[360209794,1746625854459,-450.0,0.00019981,2]
[360209795,1746625854468,-450.0,0.00019981,2]
[360209796,1746625854478,-450.0,0.00019981,2]
[360209797,1746625854488,-450.0,0.00019981,2]
[360209798,1746625854499,-450.0,0.00019981,2]
[360209799,1746625854508,-1424.8,0.00019981,2]
[360209800,1746625854517,-450.0,0.00019981,2]
[360209801,1746625854527,-460.11033418,0.00019981,2]
[360209802,1746625854536,-450.0,0.00019981,2]
[360209803,1746625854545,-450.0,0.00019981,2]
[360209804,1746625854554,-450.0,0.00019981,2]
[360209805,1746625854563,-450.0,0.00019981,2]
[360209806,1746625854572,-450.0,0.00019981,2]
[360209807,1746625854581,-450.0,0.00019981,2]
[360209808,1746625854591,-151.0,0.00019981,2]
[360209809,1746625854601,-151.0,0.00019981,2]
[360209810,1746625854612,-538.22,0.00019981,2]
[360209811,1746625854622,-446.42,0.00019981,2]
[360209812,1746625854631,-460.325139,0.00019981,2]
[360209813,1746625854640,-450.0,0.00019981,2]
[360209814,1746625854649,-460.325139,0.00019981,2]
[360209815,1746625854658,-450.0,0.00019981,2]
[360209816,1746625854669,-460.325139,0.00019981,2]
[360209817,1746625854678,-460.325139,0.00019981,2]
[360209818,1746625854687,-151.0,0.00019981,2]
[360209819,1746625854697,-450.0,0.00019981,2]
[360209820,1746625854706,-151.0,0.00019981,2]
[360209821,1746625854716,-4483.06,0.00019981,2]
[360209822,1746625854726,-1017.76,0.00019981,2]
[360209823,1746625854736,-151.0,0.00019981,2]
[360209824,1746625854745,-450.0,0.00019981,2]
[360209825,1746625854755,-450.0,0.00019981,2]
[360209826,1746625854764,-528.547986,0.00019981,2]
[360209827,1746625854774,-1688.67,0.00019981,2]
[360209828,1746625854784,-450.0,0.00019981,2]
[360209829,1746625854799,-6359.526948,0.00019981,2]
[360209830,1746625854808,-151.0,0.00019981,2]
[360209831,1746625854817,-25732.11,0.00019981,2]
[360209832,1746625854828,-450.0,0.00019981,2]
[360209833,1746625854838,-450.0,0.00019981,2]
[360209834,1746625854849,-483.90109674,0.00019981,2]
[360209835,1746625854860,-450.0,0.00019981,2]
[360209836,1746625854869,-12500.0,0.00019981,2]
[360209837,1746625854879,-12500.0,0.00019981,2]
[360209838,1746625854888,-5800.0,0.00019982,2]
[360209839,1746625854899,-151.0,0.00019982,2]
[360209840,1746625854908,-151.0,0.00019982,2]
[360209841,1746625854923,-150.0,0.00019983,2]
[360209842,1746625854932,-201.555034,0.00019984,2]
[360209843,1746625854941,-177.828697,0.00019984,2]
[360209844,1746625854950,-279.955236,0.00019984,2]
[360209845,1746625854959,-151.0,0.00019984,2]
[360209846,1746625854968,-185.270238,0.00019984,2]
[360209847,1746625854977,-223.107524,0.00019984,2]
[360209848,1746625854987,-151.0,0.00019984,2]
[360209849,1746625854996,-207.664031,0.00019984,2]
[360209850,1746625855006,-207.664031,0.00019984,2]
[360209851,1746625855015,-450.0,0.00019984,2]
[360209852,1746625855025,-308.0,0.00019984,2]
[360209853,1746625855034,-450.0,0.00019984,2]
[360209854,1746625855043,-462.81350523,0.00019984,2]
[360209855,1746625855052,-450.0,0.00019984,2]
[360209856,1746625855061,-1928.56,0.00019984,2]
[360209857,1746625855071,-450.0,0.00019984,2]
[360209858,1746625855080,-450.0,0.00019984,2]
[360209859,1746625855089,-4173.24,0.00019984,2]
[360209860,1746625855098,-450.0,0.00019984,2]
[360209861,1746625855108,-3281.43,0.00019984,2]
[360209862,1746625855117,-450.0,0.00019984,2]
[360209863,1746625855127,-450.0,0.00019984,2]
[360209864,1746625855136,-762.577725,0.00019984,2]
[360209865,1746625855145,-450.0,0.00019984,2]
[360209866,1746625855154,-762.577725,0.00019984,2]
[360209867,1746625855165,-151.0,0.00019984,2]
[360209868,1746625855175,-450.0,0.00019984,2]
[360209869,1746625855184,-450.0,0.00019984,2]
[360209870,1746625855193,-450.0,0.00019984,2]
[360209871,1746625855203,-151.0,0.00019984,2]
[360209872,1746625855212,-166.47,0.00019984,2]
[360209873,1746625855222,-450.0,0.00019984,2]
[360209874,1746625855231,-450.0,0.00019984,2]
[360209875,1746625855241,-450.0,0.00019984,2]
[360209876,1746625855251,-500.0,0.00019984,2]
[360209877,1746625855261,-450.0,0.00019984,2]
[360209878,1746625855271,-450.0,0.00019984,2]
[360209879,1746625855280,-312.08489669,0.00019984,2]
[360209880,1746625855519,-89.11510331,0.00019984,2]
[360209881,1746625855530,-450.0,0.00019984,2]
[360209882,1746625855540,-450.0,0.00019984,2]
[360209883,1746625855550,-450.0,0.00019984,2]
[360209884,1746625855559,-500.0,0.00019984,2]
[360209885,1746625855568,-450.0,0.00019984,2]
[360209886,1746625855578,-517.45718843,0.00019984,2]
[360209887,1746625855590,-450.0,0.00019984,2]
[360209888,1746625855600,-1424.8,0.00019984,2]
[360209889,1746625855610,-450.0,0.00019984,2]
[360209890,1746625855621,-450.0,0.00019984,2]
[360209891,1746625855634,-153.84795029,0.00019984,2]
[360209892,1746625855644,-450.0,0.00019984,2]
[360209893,1746625855654,-450.0,0.00019984,2]
[360209894,1746625855663,-450.0,0.00019984,2]
[360209895,1746625855673,-450.0,0.00019984,2]
[360209896,1746625855682,-450.0,0.00019984,2]
[360209897,1746625855692,-450.0,0.00019984,2]
[360209898,1746625855702,-450.0,0.00019984,2]
[360209899,1746625855714,-450.0,0.00019984,2]
[360209900,1746625855724,-487.56,0.00019984,2]
[360209901,1746625855734,-450.0,0.00019984,2]
[360209902,1746625855744,-279.45033751,0.00019984,2]
[360209903,1746625855753,-515.78,0.00019984,2]
[360209904,1746625855763,-450.0,0.00019984,2]
[360209905,1746625855773,-450.0,0.00019984,2]
[360209906,1746625855782,-508.09,0.00019984,2]
[360209907,1746625855792,-450.0,0.00019984,2]
[360209908,1746625855802,-450.0,0.00019984,2]
[360209909,1746625855813,-450.0,0.00019984,2]
[360209910,1746625855823,-450.0,0.00019984,2]
[360209911,1746625855833,-4483.06,0.00019984,2]
[360209912,1746625855842,-450.0,0.00019984,2]
[360209913,1746625855852,-151.0,0.00019984,2]
[360209914,1746625855862,-450.0,0.00019984,2]
[360209915,1746625855871,-450.0,0.00019984,2]
[360209916,1746625855881,-528.547986,0.00019984,2]
[360209917,1746625855891,-519.12,0.00019984,2]
[360209918,1746625855901,-450.0,0.00019984,2]
[360209919,1746625855911,-450.0,0.00019984,2]
[360209920,1746625855925,-6359.526948,0.00019984,2]
[360209921,1746625855935,-183.671454,0.00019984,2]
[360209922,1746625855944,-450.0,0.00019984,2]
[360209923,1746625855954,-450.0,0.00019984,2]
[360209924,1746625855964,-447.89,0.00019984,2]
[360209925,1746625855974,-450.0,0.00019985,2]
[360209926,1746625855984,-162.84043537,0.00019985,2]
[360209927,1746625855994,-151.0,0.00019985,2]
[360209928,1746625856005,-151.0,0.00019985,2]
[360209929,1746625856014,-151.0,0.00019985,2]
[360209930,1746625856023,-205.34323269,0.00019985,2]
[360209931,1746625856033,-450.0,0.00019985,2]
[360209932,1746625856044,-151.0,0.00019985,2]
[360209933,1746625856054,-560.55,0.00019985,2]
[360209934,1746625856064,-1201.18,0.00019985,2]
[360209935,1746625856074,-450.0,0.00019985,2]
[360209936,1746625856085,-151.0,0.00019985,2]
[360209937,1746625856095,-178.1,0.00019985,2]
[360209938,1746625856106,-376.32,0.00019985,2]
[360209939,1746625856117,-448.58,0.00019985,2]
[360209940,1746625856126,-286.16206914,0.00019985,2]
[360209941,1746625856137,-450.0,0.00019985,2]
[360209942,1746625856148,-450.0,0.00019985,2]
[360209943,1746625856158,-450.0,0.00019985,2]
[360209944,1746625856168,-450.0,0.00019985,2]
[360209945,1746625856178,-151.0,0.00019985,2]
[360209946,1746625856188,-1462.3394528,0.00019985,2]
[360209947,1746625856197,-450.0,0.00019985,2]
[360209948,1746625856208,-450.0,0.00019985,2]
[360209949,1746625856219,-450.0,0.00019985,2]
[360209950,1746625856229,-450.0,0.00019985,2]
[360209951,1746625856239,-450.0,0.00019985,2]
[360209952,1746625856251,-542.35,0.00019985,2]
[360209953,1746625856260,-450.0,0.00019985,2]
[360209954,1746625856270,-450.0,0.00019985,2]
[360209955,1746625856281,-450.0,0.00019985,2]
[360209956,1746625856291,-560.32,0.00019985,2]
[360209957,1746625856300,-450.0,0.00019985,2]
[360209958,1746625856311,-450.0,0.00019985,2]
[360209959,1746625856321,-426.83684839,0.00019985,2]
[360209960,1746625856333,-30380.3227518,0.00019985,2]
[360209961,1746625856344,-450.0,0.00019985,2]
[360209962,1746625856355,-450.0,0.00019985,2]
[360209963,1746625856365,-450.0,0.00019985,2]
[360209964,1746625856377,-450.0,0.00019985,2]
[360209965,1746625856387,-450.0,0.00019985,2]
[360209966,1746625856397,-450.0,0.00019985,2]
[360209967,1746625856407,-450.0,0.00019985,2]
[360209968,1746625856418,-293.8593662,0.00019985,2]
[360209969,1746625856429,-450.0,0.00019985,2]
[360209970,1746625856440,-450.0,0.00019985,2]
[360209971,1746625856451,-450.0,0.00019985,2]
[360209972,1746625856460,-450.0,0.00019985,2]
[360209973,1746625856470,-150.0,0.00019985,2]
[360209974,1746625856479,-191.77908597,0.00019985,2]
[360209975,1746625856489,-450.0,0.00019985,2]
[360209976,1746625856500,-450.0,0.00019985,2]
[360209977,1746625856509,-450.0,0.00019985,2]
[360209978,1746625856519,-450.0,0.00019985,2]
[360209979,1746625856529,-151.0,0.00019985,2]
[360209980,1746625856540,-885.02,0.00019985,2]
[360209981,1746625856549,-450.0,0.00019985,2]
[360209982,1746625856559,-450.0,0.00019985,2]
[360209983,1746625856569,-762.577725,0.00019985,2]
[360209984,1746625856579,-762.577725,0.00019985,2]
[360209985,1746625856590,-450.0,0.00019985,2]
[360209986,1746625856600,-450.0,0.00019985,2]
[360209987,1746625856610,-450.0,0.00019985,2]
[360209988,1746625856620,-492.14316457,0.00019985,2]
[360209989,1746625856631,-450.0,0.00019985,2]
[360209990,1746625856641,-406.30512219,0.00019985,2]
[360209991,1746625856650,-235.61489581,0.00019985,2]
[360209992,1746625856661,-450.0,0.00019985,2]
[360209993,1746625856672,-450.0,0.00019985,2]
[360209994,1746625856682,-450.0,0.00019985,2]
[360209995,1746625856692,-1424.8,0.00019985,2]
[360209996,1746625856702,-440.0,0.00019985,2]
[360209997,1746625856712,-450.0,0.00019985,2]
[360209998,1746625856722,-450.0,0.00019985,2]
[360209999,1746625856732,-2107.13,0.00019985,2]
[360210000,1746625856742,-450.0,0.00019985,2]
[360210001,1746625856752,-151.0,0.00019985,2]
[360210002,1746625856762,-450.0,0.00019985,2]
[360210003,1746625856772,-450.0,0.00019985,2]
[360210004,1746625856782,-460.325139,0.00019985,2]
[360210005,1746625856792,-212.76,0.00019985,2]
[360210006,1746625856801,-450.0,0.00019985,2]
[360210007,1746625856811,-460.325139,0.00019985,2]
[360210008,1746625856821,-450.0,0.00019985,2]
[360210009,1746625856830,-151.0,0.00019985,2]
[360210010,1746625856840,-558.05,0.00019985,2]
[360210011,1746625856850,-4483.06,0.00019985,2]
[360210012,1746625856860,-151.0,0.00019985,2]
[360210013,1746625856870,-450.0,0.00019985,2]
[360210014,1746625856879,-450.0,0.00019985,2]
[360210015,1746625856889,-450.0,0.00019985,2]
[360210016,1746625856899,-450.0,0.00019985,2]
[360210017,1746625856908,-450.0,0.00019985,2]
[360210018,1746625856921,-450.0,0.00019985,2]
[360210019,1746625856931,-450.0,0.00019985,2]
[360210020,1746625856941,-151.0,0.00019986,2]
[360210021,1746625856951,-155.91714744,0.00019986,2]
[360210022,1746625856963,-213.451662,0.00019986,2]
[360210023,1746625856974,-213.451662,0.00019986,2]
[360210024,1746625856984,-151.0,0.00019986,2]
[360210025,1746625856994,-207.664031,0.00019986,2]
[360210026,1746625857004,-207.664031,0.00019986,2]
[360210027,1746625857015,-244.812452,0.00019986,2]
[360210028,1746625857025,-1242.1678155,0.00019986,2]
[360210029,1746625857035,-1021.9961783,0.00019986,2]
[360210030,1746625857044,-801.824541,0.00019986,2]
[360210031,1746625857054,-581.6529038,0.00019986,2]
[360210032,1746625857064,-25817.5822975,0.00019986,2]
[360210033,1746625857074,-21254.8418433,0.00019986,2]
[360210034,1746625857083,-16692.101389,0.00019986,2]
[360210035,1746625857093,-12129.3609347,0.00019986,2]
[360210036,1746625857103,-151.0,0.00019986,2]
[360210037,1746625857114,-293.8593662,0.00019986,2]
[360210038,1746625857124,-293.8593662,0.00019986,2]
[360210039,1746625857134,-293.8593662,0.00019986,2]
[360210040,1746625857144,-293.8593662,0.00019986,2]
[360210041,1746625857154,-981.904133,0.00019986,2]
[360210042,1746625857165,-981.904133,0.00019986,2]
[360210043,1746625857175,-151.0,0.00019986,2]
[360210044,1746625857185,-762.577725,0.00019986,2]
[360210045,1746625857195,-762.577725,0.00019986,2]
[360210046,1746625857205,-151.0,0.00019986,2]
[360210047,1746625857215,-151.0,0.00019986,2]
[360210048,1746625857225,-168.70673,0.00019986,23]
[360210049,1746625857235,-151.0,0.00019986,2]
[360210050,1746625857245,-460.325139,0.00019986,2]
[360210051,1746625857255,-460.325139,0.00019986,2]
[360210052,1746625857265,-151.0,0.00019986,2]
[360210053,1746625857275,-151.0,0.00019987,2]
[360210054,1746625857286,-162.338423,0.00019988,2]
[360210055,1746625857296,-267.87206048,0.00019988,2]
[360210056,1746625857307,-395.49672839,0.00019988,2]
[360210057,1746625857317,-456.4,0.00019988,2]
[360210058,1746625857327,-450.0,0.00019988,2]
[360210059,1746625857338,-450.0,0.00019988,2]
[360210060,1746625857348,-450.0,0.00019988,2]
[360210061,1746625857358,-500.0,0.00019988,2]
[360210062,1746625857368,-450.0,0.00019988,2]
[360210063,1746625857378,-450.0,0.00019988,2]
[360210064,1746625857387,-412.7456353,0.00019988,2]
[360210065,1746625857397,-450.0,0.00019988,2]
[360210066,1746625857407,-450.0,0.00019988,2]
[360210067,1746625857417,-450.0,0.00019988,2]
[360210068,1746625857427,-450.0,0.00019988,2]
[360210069,1746625857436,-450.0,0.00019988,2]
[360210070,1746625857446,-450.0,0.00019988,2]
[360210071,1746625857456,-450.0,0.00019988,2]
[360210072,1746625857466,-450.0,0.00019988,2]
[360210073,1746625857475,-450.0,0.00019988,2]
[360210074,1746625857485,-450.0,0.00019988,2]
[360210075,1746625857495,-450.0,0.00019988,2]
[360210076,1746625857506,-450.0,0.00019988,2]
[360210077,1746625857516,-450.0,0.00019988,2]
[360210078,1746625857527,-450.0,0.00019988,2]
[360210079,1746625857538,-450.0,0.00019988,2]
[360210080,1746625857550,-450.0,0.00019988,2]
[360210081,1746625857560,-450.0,0.00019988,2]
[360210082,1746625857570,-450.0,0.00019988,2]
[360210083,1746625857580,-450.0,0.00019988,2]
[360210084,1746625857590,-190.37861243,0.00019988,2]
[360210085,1746625857600,-450.0,0.00019988,2]
[360210086,1746625857610,-450.0,0.00019988,2]
[360210087,1746625857620,-450.0,0.00019988,2]
[360210088,1746625857805,-450.0,0.00019988,2]
[360210089,1746625857816,-34179.84,0.00019988,2]
[360210090,1746625857826,-450.0,0.00019988,2]
[360210091,1746625857835,-450.0,0.00019988,2]
[360210092,1746625857845,-450.0,0.00019988,2]
[360210093,1746625857854,-315.0398716,0.00019988,2]
[360210094,1746625857863,-527.63637026,0.00019988,2]
[360210095,1746625857873,-450.0,0.00019988,2]
[360210096,1746625857883,-450.0,0.00019988,2]
[360210097,1746625857894,-450.0,0.00019988,2]
[360210098,1746625857904,-450.0,0.00019988,2]
[360210099,1746625857915,-450.0,0.00019988,2]
[360210100,1746625857932,-450.0,0.00019988,2]
[360210101,1746625857941,-700.52,0.00019988,2]
[360210102,1746625857952,-450.0,0.00019988,2]
[360210103,1746625857963,-450.0,0.00019988,2]
[360210104,1746625857973,-450.0,0.00019988,2]
[360210105,1746625857982,-450.0,0.00019988,2]
[360210106,1746625857991,-450.0,0.00019988,2]
[360210107,1746625858004,-450.0,0.00019988,2]
[360210108,1746625858015,-450.0,0.00019988,2]
[360210109,1746625858025,-450.0,0.00019988,2]
[360210110,1746625858035,-450.0,0.00019988,2]
[360210111,1746625858045,-450.0,0.00019988,2]
[360210112,1746625858055,-450.0,0.00019988,2]
[360210113,1746625858065,-538.22,0.00019988,2]
[360210114,1746625858076,-450.0,0.00019988,2]
[360210115,1746625858085,-450.0,0.00019988,2]
[360210116,1746625858095,-450.0,0.00019988,2]
[360210117,1746625858104,-1017.76,0.00019988,2]
[360210118,1746625858114,-450.0,0.00019988,2]
[360210119,1746625858124,-450.0,0.00019988,2]
[360210120,1746625858133,-1688.67,0.00019988,2]
[360210121,1746625858143,-450.0,0.00019988,2]
[360210122,1746625858154,-25732.11,0.00019988,2]
[360210123,1746625858164,-450.0,0.00019988,2]
[360210124,1746625858175,-151.0,0.00019989,2]
[360210125,1746625858184,-213.451662,0.00019989,2]
[360210126,1746625858194,-213.451662,0.00019989,2]
[360210127,1746625858203,-151.0,0.00019989,2]
[360210128,1746625858213,-292.624201,0.00019989,2]
[360210129,1746625858223,-150.0,0.00019989,2]
[360210130,1746625858232,-1000.0,0.00019989,2]
[360210131,1746625858242,-151.0,0.00019989,2]
[360210132,1746625858252,-450.0,0.00019989,2]
[360210133,1746625858262,-450.0,0.00019989,2]
[360210134,1746625858271,-450.0,0.00019989,2]
[360210135,1746625858281,-1928.56,0.00019989,2]
[360210136,1746625858290,-450.0,0.00019989,2]
[360210137,1746625858300,-450.0,0.00019989,2]
[360210138,1746625858310,-450.0,0.00019989,2]
[360210139,1746625858319,-4173.24,0.00019989,2]
[360210140,1746625858329,-450.0,0.00019989,2]
[360210141,1746625858338,-3281.43,0.00019989,2]
[360210142,1746625858348,-450.0,0.00019989,2]
[360210143,1746625858357,-450.0,0.00019989,2]
[360210144,1746625858367,-450.0,0.00019989,2]
[360210145,1746625858376,-762.577725,0.00019989,2]
[360210146,1746625858386,-450.0,0.00019989,2]
[360210147,1746625858395,-450.0,0.00019989,2]
[360210148,1746625858404,-762.577725,0.00019989,2]
[360210149,1746625858414,-192.384419,0.00019989,2]
[360210150,1746625858425,-450.0,0.00019989,2]
[360210151,1746625858434,-450.0,0.00019989,2]
[360210152,1746625858444,-572.53,0.00019989,2]
[360210153,1746625858453,-450.0,0.00019989,2]
[360210154,1746625858462,-151.0,0.00019989,2]
[360210155,1746625858471,-450.0,0.00019989,2]
[360210156,1746625858481,-450.0,0.00019989,2]
[360210157,1746625858490,-500.0,0.00019989,2]
[360210158,1746625858500,-500.0,0.00019989,2]
[360210159,1746625858510,-500.0,0.00019989,2]
[360210160,1746625858519,-547.46631648,0.00019989,2]
[360210161,1746625858528,-450.0,0.00019989,2]
[360210162,1746625858538,-500.0,0.00019989,2]
[360210163,1746625858547,-504.08951184,0.00019989,2]
[360210164,1746625858556,-450.0,0.00019989,2]
[360210165,1746625858565,-450.0,0.00019989,2]
[360210166,1746625858575,-450.0,0.00019989,2]
[360210167,1746625858584,-450.0,0.00019989,2]
[360210168,1746625858594,-450.0,0.00019989,2]
[360210169,1746625858604,-450.0,0.00019989,2]
[360210170,1746625858613,-450.0,0.00019989,2]
[360210171,1746625858623,-450.0,0.00019989,2]
[360210172,1746625858634,-211.10237496,0.00019989,2]
[360210173,1746625858643,-450.0,0.00019989,2]
[360210174,1746625858653,-450.0,0.00019989,2]
[360210175,1746625858664,-450.0,0.00019989,2]
[360210176,1746625858674,-264.075759,0.00019989,2]
[360210177,1746625858683,-515.78,0.00019989,2]
[360210178,1746625858695,-515.78,0.00019989,2]
[360210179,1746625858706,-450.0,0.00019989,2]
[360210180,1746625858716,-450.0,0.00019989,2]
[360210181,1746625858727,-450.0,0.00019989,2]
[360210182,1746625858738,-450.0,0.00019989,2]
[360210183,1746625858748,-460.325139,0.00019989,2]
[360210184,1746625858757,-450.0,0.00019989,2]
[360210185,1746625858768,-450.0,0.00019989,2]
[360210186,1746625858779,-460.325131,0.00019989,2]
[360210187,1746625858790,-151.0,0.00019989,2]
[360210188,1746625858799,-225.24301276,0.00019989,2]
[360210189,1746625858809,-450.0,0.00019989,2]
[360210190,1746625858819,-450.0,0.00019989,2]
[360210191,1746625858828,-450.0,0.00019989,2]
[360210192,1746625858837,-444.22558065,0.00019989,2]
[360210193,1746625858847,-450.0,0.00019989,2]
[360210194,1746625858856,-450.0,0.00019989,2]
[360210195,1746625858865,-450.0,0.00019989,2]
[360210196,1746625858874,-450.0,0.00019989,2]
[360210197,1746625858885,-219.64,0.00019989,2]
[360210198,1746625858895,-519.12,0.00019989,2]
[360210199,1746625858905,-452.44,0.00019989,2]
[360210200,1746625858915,-450.0,0.00019989,2]
[360210201,1746625858929,-265.439215,0.00019989,2]
[360210202,1746625858939,-30242.33795649,0.0001999,2]
[360210203,1746625858950,-151.0,0.0001999,2]
[360210204,1746625858962,-151.0,0.0001999,2]
[360210205,1746625858975,-207.664031,0.0001999,2]
[360210206,1746625858985,-207.664031,0.0001999,2]
[360210207,1746625858996,-151.0,0.0001999,2]
[360210208,1746625859007,-150.0,0.0001999,2]
[360210209,1746625859016,-318.71531528,0.0001999,2]
[360210210,1746625859033,-663.18881772,0.0001999,2]
[360210211,1746625859043,-981.904133,0.0001999,2]
[360210212,1746625859053,-176.33862059,0.0001999,2]
[360210213,1746625859062,-10849.09193299,0.0001999,2]
[360210214,1746625859073,-1650.90806701,0.0001999,2]
[360210215,1746625859083,-3110.55267506,0.0001999,2]
[360210216,1746625859095,-9389.44732494,0.0001999,2]
[360210217,1746625859104,-12500.0,0.0001999,2]
[360210218,1746625859114,-5800.0,0.0001999,2]
[360210219,1746625859123,-150.0,0.00019993,2]
[360210220,1746625859132,-450.0,0.00019994,2]
[360210221,1746625859142,-243.06,0.00019994,2]
[360210222,1746625859152,-1424.8,0.00019994,2]
[360210223,1746625859161,-450.0,0.00019994,2]
[360210224,1746625859172,-450.0,0.00019994,2]
[360210225,1746625859181,-450.0,0.00019994,2]
[360210226,1746625859192,-4483.06,0.00019994,2]
[360210227,1746625859202,-450.0,0.00019994,2]
[360210228,1746625859212,-151.0,0.00019995,2]
[360210229,1746625859222,-180.64,0.00019995,2]
[360210230,1746625859232,-450.0,0.00019995,2]
[360210231,1746625859242,-450.0,0.00019995,2]
[360210232,1746625859251,-450.0,0.00019995,2]
[360210233,1746625859261,-450.0,0.00019995,2]
[360210234,1746625859270,-450.0,0.00019995,2]
[360210235,1746625859280,-450.0,0.00019995,2]
[360210236,1746625859291,-450.0,0.00019995,2]
[360210237,1746625859300,-450.0,0.00019995,2]
[360210238,1746625859310,-450.0,0.00019995,2]